[Event "November 21 Late 2023"]
[Site "https://www.chess.com"]
[Date "2023.11.21"]
[Round "1"]
[White "Koutlas, Nikolaos"]
[Black "Chigaev, Maksim"]
[Result "0-1"]
[Board "26"]
[TimeControl "180+1"]
[WhiteFideId "25827138"]
[BlackFideId "4108116"]
[WhiteElo "2215"]
[BlackElo "2561"]
[WhiteTeam "GRE"]
[BlackTeam "ESP"]
[WhiteClock "0:00:13"]
[BlackClock "0:00:11"]

1. c4 {[%clk 0:02:59]}  g6 {[%clk 0:02:53]} 2. Nc3 {[%clk 0:02:58]}  Bg7 {[%clk 0:02:48]} 3. g3 {[%clk 0:02:56]}  d6 {[%clk 0:02:48]} 4. Bg2 {[%clk 0:02:56]}  c5 {[%clk 0:02:48]} 5. Nf3 {[%clk 0:02:53]}  Nc6 {[%clk 0:02:48]} 6. O-O {[%clk 0:02:54]}  Nf6 {[%clk 0:02:40]} 7. a3 {[%clk 0:02:53]}  O-O {[%clk 0:02:39]} 8. Rb1 {[%clk 0:02:53]}  Bf5 {[%clk 0:02:36]} 9. d3 {[%clk 0:02:53]}  Qd7 {[%clk 0:02:36]} 10. Re1 {[%clk 0:02:50]}  b6 {[%clk 0:02:31]} 11. b4 {[%clk 0:02:48]}  Rac8 {[%clk 0:02:30]} 12. Bd2 {[%clk 0:02:20]}  Bh3 {[%clk 0:02:28]} 13. Bh1 {[%clk 0:02:19]}  h6 {[%clk 0:02:28]} 14. b5 {[%clk 0:02:07]}  Na5 {[%clk 0:02:20]} 15. Qc1 {[%clk 0:01:57]}  Kh7 {[%clk 0:02:20]} 16. e4 {[%clk 0:01:38]}  e5 {[%clk 0:02:14]} 17. Nh4 {[%clk 0:01:33]}  Nh5 {[%clk 0:02:06]} 18. Qd1 {[%clk 0:01:22]}  Bg4 {[%clk 0:02:05]} 19. Bf3 {[%clk 0:01:14]}  Bxf3 {[%clk 0:02:05]} 20. Qxf3 {[%clk 0:01:15]}  Nb7 {[%clk 0:02:06]} 21. Nd5 {[%clk 0:01:13]}  Nd8 {[%clk 0:01:44]} 22. Nf5 {[%clk 0:01:10]}  Ne6 {[%clk 0:01:13]} 23. Bxh6 {[%clk 0:00:59]}  f6 {[%clk 0:00:24]} 24. Bxg7 {[%clk 0:00:44]}  Ng5 {[%clk 0:00:16]} 25. Qg4 {[%clk 0:00:37]}  gxf5 {[%clk 0:00:14]} 26. Qxh5+ {[%clk 0:00:35]}  Kxg7 {[%clk 0:00:14]} 27. h4 {[%clk 0:00:27]}  Rh8 {[%clk 0:00:10]} 28. Nxf6 {[%clk 0:00:20]}  Rxh5 {[%clk 0:00:09]} 29. Nxd7 {[%clk 0:00:20]}  Nf3+ {[%clk 0:00:10]} 30. Kg2 {[%clk 0:00:18]}  Nxe1+ {[%clk 0:00:10]} 31. Rxe1 {[%clk 0:00:13]}  Rd8 {[%clk 0:00:11]} 0-1

[Event "November 21 Late 2023"]
[Site "https://www.chess.com"]
[Date "2023.11.21"]
[Round "1"]
[White "Osmak, Yuliia"]
[Black "Khismatullin, Denis"]
[Result "0-1"]
[Board "28"]
[TimeControl "180+1"]
[WhiteFideId "14101602"]
[BlackFideId "4142578"]
[WhiteElo "2303"]
[BlackElo "2552"]
[WhiteTeam "UKR"]
[BlackTeam "RUS"]
[WhiteClock "0:00:00"]
[BlackClock "0:00:36"]

1. e4 {[%clk 0:02:59]}  c5 {[%clk 0:02:59]} 2. Nf3 {[%clk 0:02:55]}  e6 {[%clk 0:02:58]} 3. g3 {[%clk 0:02:51]}  Nc6 {[%clk 0:02:57]} 4. Bg2 {[%clk 0:02:50]}  Nf6 {[%clk 0:02:56]} 5. d3 {[%clk 0:02:43]}  d6 {[%clk 0:02:56]} 6. O-O {[%clk 0:02:41]}  Be7 {[%clk 0:02:57]} 7. Re1 {[%clk 0:02:41]}  O-O {[%clk 0:02:56]} 8. c3 {[%clk 0:02:38]}  e5 {[%clk 0:02:56]} 9. d4 {[%clk 0:02:29]}  exd4 {[%clk 0:02:51]} 10. cxd4 {[%clk 0:02:30]}  Bg4 {[%clk 0:02:50]} 11. d5 {[%clk 0:01:55]}  Nd4 {[%clk 0:02:47]} 12. Nc3 {[%clk 0:01:55]}  Nd7 {[%clk 0:02:36]} 13. Be3 {[%clk 0:01:50]}  Ne5 {[%clk 0:02:35]} 14. Bxd4 {[%clk 0:01:42]}  cxd4 {[%clk 0:02:34]} 15. Nb5 {[%clk 0:01:39]}  Bxf3 {[%clk 0:02:34]} 16. Bxf3 {[%clk 0:01:38]}  Qb6 {[%clk 0:02:35]} 17. Be2 {[%clk 0:01:28]}  d3 {[%clk 0:02:34]} 18. Bxd3 {[%clk 0:01:27]}  a6 {[%clk 0:02:31]} 19. Na3 {[%clk 0:01:22]}  Rac8 {[%clk 0:02:29]} 20. b3 {[%clk 0:01:16]}  Bf6 {[%clk 0:02:24]} 21. Rb1 {[%clk 0:01:08]}  Qd4 {[%clk 0:02:06]} 22. Bf1 {[%clk 0:01:02]}  b5 {[%clk 0:02:05]} 23. Qxd4 {[%clk 0:00:40]}  Nf3+ {[%clk 0:02:04]} 24. Kh1 {[%clk 0:00:38]}  Bxd4 {[%clk 0:02:03]} 25. Re2 {[%clk 0:00:37]}  Rc3 {[%clk 0:01:49]} 26. Nc2 {[%clk 0:00:34]}  Rfc8 {[%clk 0:01:34]} 27. Nxd4 {[%clk 0:00:31]}  Nxd4 {[%clk 0:01:35]} 28. Reb2 {[%clk 0:00:26]}  g5 {[%clk 0:01:28]} 29. Kg2 {[%clk 0:00:21]}  Re8 {[%clk 0:01:25]} 30. Re1 {[%clk 0:00:15]}  f5 {[%clk 0:01:23]} 31. a4 {[%clk 0:00:10]}  Rxe4 {[%clk 0:01:14]} 32. Rxe4 {[%clk 0:00:10]}  fxe4 {[%clk 0:01:15]} 33. axb5 {[%clk 0:00:10]}  axb5 {[%clk 0:01:15]} 34. b4 {[%clk 0:00:10]}  Kg7 {[%clk 0:01:11]} 35. Rd2 {[%clk 0:00:09]}  Nf3 {[%clk 0:01:08]} 36. Rd1 {[%clk 0:00:08]}  Rb3 {[%clk 0:01:01]} 37. Bxb5 {[%clk 0:00:08]}  Rxb4 {[%clk 0:01:01]} 38. Be2 {[%clk 0:00:08]}  Nd4 {[%clk 0:00:55]} 39. Bf1 {[%clk 0:00:07]}  Kf6 {[%clk 0:00:53]} 40. h3 {[%clk 0:00:06]}  Ke5 {[%clk 0:00:52]} 41. Re1 {[%clk 0:00:04]}  Kxd5 {[%clk 0:00:48]} 42. Be2 {[%clk 0:00:04]}  Nxe2 {[%clk 0:00:43]} 43. Rxe2 {[%clk 0:00:04]}  Ke5 {[%clk 0:00:42]} 44. Ra2 {[%clk 0:00:03]}  d5 {[%clk 0:00:41]} 45. Ra5 {[%clk 0:00:02]}  Rb2 {[%clk 0:00:40]} 46. Ra8 {[%clk 0:00:02]}  Kd4 {[%clk 0:00:38]} 47. Rg8 {[%clk 0:00:01]}  e3 {[%clk 0:00:37]} 48. Rxg5 {[%clk 0:00:01]}  Rxf2+ {[%clk 0:00:36]} 49. Kg1 {[%clk 0:00:02]}  Rf7 {[%clk 0:00:36]} 50. Rh5 {[%clk 0:00:00]}  e2 {[%clk 0:00:36]} 0-1

[Event "November 21 Late 2023"]
[Site "https://www.chess.com"]
[Date "2023.11.21"]
[Round "1"]
[White "Ashraf, Artin"]
[Black "Martins, Bruno Andre Leite"]
[Result "0-1"]
[Board "33"]
[TimeControl "180+1"]
[WhiteFideId "22514805"]
[BlackFideId "1942255"]
[WhiteElo "2235"]
[BlackElo "2307"]
[WhiteTeam "IRI"]
[BlackTeam "POR"]
[WhiteClock "0:00:00"]
[BlackClock "0:00:13"]

1. c4 {[%clk 0:02:59]}  Nf6 {[%clk 0:02:57]} 2. d4 {[%clk 0:02:56]}  e6 {[%clk 0:02:58]} 3. Nc3 {[%clk 0:02:56]}  Bb4 {[%clk 0:02:56]} 4. f3 {[%clk 0:02:48]}  O-O {[%clk 0:02:53]} 5. a3 {[%clk 0:02:45]}  Bxc3+ {[%clk 0:02:52]} 6. bxc3 {[%clk 0:02:45]}  c5 {[%clk 0:02:51]} 7. e4 {[%clk 0:02:44]}  Nc6 {[%clk 0:02:44]} 8. Ne2 {[%clk 0:02:40]}  b6 {[%clk 0:02:24]} 9. Ng3 {[%clk 0:02:37]}  d6 {[%clk 0:02:18]} 10. Be3 {[%clk 0:02:31]}  Na5 {[%clk 0:02:11]} 11. Bd3 {[%clk 0:02:31]}  Ba6 {[%clk 0:02:04]} 12. Qe2 {[%clk 0:02:31]}  Rc8 {[%clk 0:01:48]} 13. d5 {[%clk 0:02:30]}  Nd7 {[%clk 0:01:41]} 14. Bf4 {[%clk 0:02:26]}  Ne5 {[%clk 0:01:39]} 15. Bxe5 {[%clk 0:02:25]}  dxe5 {[%clk 0:01:40]} 16. Nf1 {[%clk 0:02:24]}  exd5 {[%clk 0:01:34]} 17. cxd5 {[%clk 0:02:23]}  Bxd3 {[%clk 0:01:33]} 18. Qxd3 {[%clk 0:02:23]}  c4 {[%clk 0:01:33]} 19. Qc2 {[%clk 0:02:19]}  Nb3 {[%clk 0:01:32]} 20. Ra2 {[%clk 0:02:18]}  Nc5 {[%clk 0:01:32]} 21. Ne3 {[%clk 0:02:15]}  Nd3+ {[%clk 0:01:32]} 22. Ke2 {[%clk 0:02:15]}  Qc7 {[%clk 0:01:28]} 23. Raa1 {[%clk 0:02:14]}  Qc5 {[%clk 0:01:24]} 24. Rhf1 {[%clk 0:02:09]}  Nf4+ {[%clk 0:01:14]} 25. Kf2 {[%clk 0:02:08]}  Nxg2 {[%clk 0:01:12]} 26. Kxg2 {[%clk 0:02:07]}  Qxe3 {[%clk 0:01:12]} 27. Qc1 {[%clk 0:02:07]}  Qxc1 {[%clk 0:01:09]} 28. Rfxc1 {[%clk 0:02:04]}  Rfd8 {[%clk 0:01:08]} 29. Rab1 {[%clk 0:02:03]}  Rc5 {[%clk 0:01:06]} 30. a4 {[%clk 0:02:02]}  Kf8 {[%clk 0:01:03]} 31. Rb5 {[%clk 0:02:02]}  Rdc8 {[%clk 0:01:01]} 32. Rcb1 {[%clk 0:02:02]}  Ke7 {[%clk 0:00:58]} 33. a5 {[%clk 0:02:02]}  bxa5 {[%clk 0:00:58]} 34. Rxc5 {[%clk 0:02:02]}  Rxc5 {[%clk 0:00:57]} 35. Rb7+ {[%clk 0:02:03]}  Kf6 {[%clk 0:00:55]} 36. Rxa7 {[%clk 0:02:03]}  Rb5 {[%clk 0:00:52]} 37. Rc7 {[%clk 0:01:56]}  a4 {[%clk 0:00:46]} 38. Rxc4 {[%clk 0:01:47]}  Ra5 {[%clk 0:00:46]} 39. Rb4 {[%clk 0:01:43]}  a3 {[%clk 0:00:45]} 40. Rb1 {[%clk 0:01:44]}  a2 {[%clk 0:00:45]} 41. Ra1 {[%clk 0:01:44]}  Ke7 {[%clk 0:00:45]} 42. Kf2 {[%clk 0:01:44]}  Kd6 {[%clk 0:00:36]} 43. Ke3 {[%clk 0:01:44]}  Kc5 {[%clk 0:00:35]} 44. Kd3 {[%clk 0:01:45]}  f5 {[%clk 0:00:33]} 45. Kc2 {[%clk 0:01:44]}  fxe4 {[%clk 0:00:32]} 46. fxe4 {[%clk 0:01:43]}  g5 {[%clk 0:00:25]} 47. Kb3 {[%clk 0:01:41]}  h5 {[%clk 0:00:26]} 48. Kb2 {[%clk 0:01:06]}  g4 {[%clk 0:00:23]} 49. d6 {[%clk 0:01:06]}  Kxd6 {[%clk 0:00:21]} 50. Rd1+ {[%clk 0:01:07]}  Ke6 {[%clk 0:00:20]} 51. Ka1 {[%clk 0:01:07]}  Ra3 {[%clk 0:00:19]} 52. Rd3 {[%clk 0:01:00]}  h4 {[%clk 0:00:17]} 53. Re3 {[%clk 0:00:59]}  Kf6 {[%clk 0:00:16]} 54. Rd3 {[%clk 0:00:58]}  Kg5 {[%clk 0:00:17]} 55. Rd7 {[%clk 0:00:58]}  Rxc3 {[%clk 0:00:15]} 56. Rd2 {[%clk 0:00:57]}  Kf4 {[%clk 0:00:14]} 57. Kxa2 {[%clk 0:00:57]}  Kxe4 {[%clk 0:00:14]} 58. Kb2 {[%clk 0:00:57]}  Rc6 {[%clk 0:00:13]} 59. Re2+ {[%clk 0:00:57]}  Kf4 {[%clk 0:00:13]} 60. Rf2+ {[%clk 0:00:58]}  Ke3 {[%clk 0:00:13]} 61. Rg2 {[%clk 0:00:57]}  Kf3 {[%clk 0:00:13]} 62. Rd2 {[%clk 0:00:57]}  g3 {[%clk 0:00:13]} 63. h3 {[%clk 0:00:57]}  g2 {[%clk 0:00:12]} 64. Rd1 {[%clk 0:00:58]}  Kf2 {[%clk 0:00:12]} 65. Rd2+ {[%clk 0:00:58]}  Kg3 {[%clk 0:00:13]} 66. Rd3+ {[%clk 0:00:58]}  Kh2 {[%clk 0:00:13]} 67. Rd2 {[%clk 0:00:59]}  Kh1 {[%clk 0:00:13]} 68. Rd1+ {[%clk 0:01:00]}  g1=Q {[%clk 0:00:14]} 69. Ra1 {[%clk 0:00:58]}  Qxa1+ {[%clk 0:00:11]} 70. Kxa1 {[%clk 0:00:58]}  e4 {[%clk 0:00:11]} 71. Kb2 {[%clk 0:00:59]}  e3 {[%clk 0:00:12]} 72. Kb3 {[%clk 0:01:00]}  e2 {[%clk 0:00:13]} 73. Ka4 {[%clk 0:01:01]}  e1=Q {[%clk 0:00:13]} 74. Kb5 {[%clk 0:01:02]}  Qc3 {[%clk 0:00:12]} 75. Ka4 {[%clk 0:01:01]}  Ra6+ {[%clk 0:00:12]} 76. Kb5 {[%clk 0:01:01]}  Ra5+ {[%clk 0:00:13]} 77. Kb6 {[%clk 0:01:01]}  Qc5+ {[%clk 0:00:13]} 78. Kb7 {[%clk 0:00:00]}  Ra7+ {[%clk 0:00:13]} 0-1

[Event "November 21 Late 2023"]
[Site "https://www.chess.com"]
[Date "2023.11.21"]
[Round "1"]
[White "Rangel, Daniel"]
[Black "Tang, Andrew"]
[Result "1-0"]
[Board "34"]
[TimeControl "180+1"]
[WhiteFideId "2124475"]
[BlackFideId "2059630"]
[WhiteElo "2267"]
[BlackElo "2589"]
[WhiteTeam "BRA"]
[BlackTeam "USA"]
[WhiteClock "0:00:22"]
[BlackClock "0:00:04"]

1. c4 {[%clk 0:03:00]}  e6 {[%clk 0:02:56]} 2. d4 {[%clk 0:02:59]}  d5 {[%clk 0:02:55]} 3. cxd5 {[%clk 0:02:58]}  exd5 {[%clk 0:02:55]} 4. Nc3 {[%clk 0:02:59]}  c6 {[%clk 0:02:52]} 5. Bf4 {[%clk 0:02:59]}  Bf5 {[%clk 0:02:51]} 6. e3 {[%clk 0:02:59]}  Nd7 {[%clk 0:02:48]} 7. Bd3 {[%clk 0:02:59]}  Bxd3 {[%clk 0:02:47]} 8. Qxd3 {[%clk 0:03:00]}  Ngf6 {[%clk 0:02:48]} 9. Nge2 {[%clk 0:02:58]}  Nh5 {[%clk 0:02:39]} 10. Bg3 {[%clk 0:02:56]}  Be7 {[%clk 0:02:33]} 11. Nf4 {[%clk 0:02:48]}  Nxg3 {[%clk 0:02:22]} 12. hxg3 {[%clk 0:02:49]}  Nf6 {[%clk 0:02:21]} 13. f3 {[%clk 0:02:37]}  b5 {[%clk 0:01:35]} 14. Kf2 {[%clk 0:02:25]}  b4 {[%clk 0:01:12]} 15. Nce2 {[%clk 0:02:25]}  O-O {[%clk 0:01:09]} 16. Rac1 {[%clk 0:02:19]}  Rc8 {[%clk 0:01:01]} 17. g4 {[%clk 0:02:19]}  g6 {[%clk 0:00:55]} 18. Rh6 {[%clk 0:01:55]}  Kg7 {[%clk 0:00:43]} 19. Rch1 {[%clk 0:01:53]}  Rh8 {[%clk 0:00:32]} 20. Ng3 {[%clk 0:01:38]}  Ng8 {[%clk 0:00:24]} 21. R6h3 {[%clk 0:01:31]}  Bg5 {[%clk 0:00:23]} 22. Nfe2 {[%clk 0:00:53]}  Qd6 {[%clk 0:00:20]} 23. Nf5+ {[%clk 0:00:35]}  gxf5 {[%clk 0:00:14]} 24. Qxf5 {[%clk 0:00:36]}  Bxe3+ {[%clk 0:00:12]} 25. Kxe3 {[%clk 0:00:34]}  Re8+ {[%clk 0:00:09]} 26. Kf2 {[%clk 0:00:32]}  h6 {[%clk 0:00:10]} 27. g5 {[%clk 0:00:27]}  Qe7 {[%clk 0:00:07]} 28. Nf4 {[%clk 0:00:27]}  Qe3+ {[%clk 0:00:05]} 29. Kg3 {[%clk 0:00:28]}  Qxd4 {[%clk 0:00:05]} 30. gxh6+ {[%clk 0:00:25]}  Kf8 {[%clk 0:00:04]} 31. Ng6# {[%clk 0:00:22]} 1-0

[Event "November 21 Late 2023"]
[Site "https://www.chess.com"]
[Date "2023.11.21"]
[Round "1"]
[White "Tactrics"]
[Black "Della Morte, German"]
[Result "1-0"]
[Board "35"]
[TimeControl "180+1"]
[BlackFideId "113522"]
[WhiteElo "2897"]
[BlackElo "2306"]
[BlackTeam "ARG"]
[WhiteClock "0:01:41"]
[BlackClock "0:02:32"]

1. e4 {[%clk 0:02:51]}  c6 {[%clk 0:03:00]} 2. Nf3 {[%clk 0:02:50]}  d5 {[%clk 0:03:00]} 3. Nc3 {[%clk 0:02:51]}  dxe4 {[%clk 0:03:01]} 4. Nxe4 {[%clk 0:02:52]}  Nf6 {[%clk 0:03:01]} 5. Qe2 {[%clk 0:02:52]}  Nxe4 {[%clk 0:03:01]} 6. Qxe4 {[%clk 0:02:53]}  Nd7 {[%clk 0:03:02]} 7. Bc4 {[%clk 0:02:52]}  Nf6 {[%clk 0:03:02]} 8. Ne5 {[%clk 0:02:53]}  e6 {[%clk 0:03:02]} 9. Qe2 {[%clk 0:02:54]}  Bd6 {[%clk 0:03:02]} 10. O-O {[%clk 0:02:51]}  O-O {[%clk 0:03:03]} 11. d4 {[%clk 0:02:51]}  Qc7 {[%clk 0:03:03]} 12. c3 {[%clk 0:02:49]}  b5 {[%clk 0:03:04]} 13. Bd3 {[%clk 0:02:48]}  Bb7 {[%clk 0:03:04]} 14. Bg5 {[%clk 0:02:47]}  Nd5 {[%clk 0:03:04]} 15. Bd2 {[%clk 0:02:39]}  Rae8 {[%clk 0:03:02]} 16. Rae1 {[%clk 0:02:39]}  a6 {[%clk 0:03:01]} 17. h3 {[%clk 0:02:35]}  f6 {[%clk 0:03:00]} 18. Bxh7+ {[%clk 0:02:25]}  Kxh7 {[%clk 0:02:59]} 19. Qh5+ {[%clk 0:02:25]}  Kg8 {[%clk 0:03:00]} 20. Ng6 {[%clk 0:02:26]}  f5 {[%clk 0:02:54]} 21. Nxf8 {[%clk 0:02:11]}  Rxf8 {[%clk 0:02:50]} 22. Rxe6 {[%clk 0:02:09]}  Bh2+ {[%clk 0:02:50]} 23. Kh1 {[%clk 0:02:09]}  Bf4 {[%clk 0:02:49]} 24. Qd1 {[%clk 0:02:01]}  Bxd2 {[%clk 0:02:47]} 25. Qxd2 {[%clk 0:02:02]}  Nf4 {[%clk 0:02:47]} 26. Re5 {[%clk 0:01:57]}  c5 {[%clk 0:02:47]} 27. Qxf4 {[%clk 0:01:56]}  cxd4 {[%clk 0:02:42]} 28. Qxd4 {[%clk 0:01:51]}  Rd8 {[%clk 0:02:42]} 29. Qe3 {[%clk 0:01:50]}  Qc6 {[%clk 0:02:40]} 30. f3 {[%clk 0:01:49]}  Rd6 {[%clk 0:02:38]} 31. Re8+ {[%clk 0:01:46]}  Kh7 {[%clk 0:02:37]} 32. Re7 {[%clk 0:01:46]}  Rg6 {[%clk 0:02:37]} 33. Re1 {[%clk 0:01:44]}  Qc4 {[%clk 0:02:32]} 34. Rxb7 {[%clk 0:01:41]} 1-0

[Event "November 21 Late 2023"]
[Site "https://www.chess.com"]
[Date "2023.11.21"]
[Round "1"]
[White "Kovalev, Vladislav"]
[Black "Swicarz, Maciej"]
[Result "1-0"]
[Board "41"]
[TimeControl "180+1"]
[WhiteFideId "13504398"]
[BlackFideId "1113585"]
[WhiteElo "2539"]
[BlackElo "2127"]
[WhiteTeam "FID"]
[BlackTeam "POL"]
[WhiteClock "0:01:10"]
[BlackClock "0:00:03"]

1. e4 {[%clk 0:03:00]}  c5 {[%clk 0:02:59]} 2. Nf3 {[%clk 0:03:00]}  d6 {[%clk 0:03:00]} 3. Bb5+ {[%clk 0:02:58]}  Nd7 {[%clk 0:02:59]} 4. O-O {[%clk 0:02:58]}  a6 {[%clk 0:02:55]} 5. Bd3 {[%clk 0:02:58]}  Ngf6 {[%clk 0:02:53]} 6. c3 {[%clk 0:02:59]}  b5 {[%clk 0:02:51]} 7. a4 {[%clk 0:02:59]}  c4 {[%clk 0:02:49]} 8. Be2 {[%clk 0:02:56]}  Bb7 {[%clk 0:02:46]} 9. axb5 {[%clk 0:02:56]}  axb5 {[%clk 0:02:46]} 10. Rxa8 {[%clk 0:02:57]}  Qxa8 {[%clk 0:02:42]} 11. Na3 {[%clk 0:02:58]}  Bxe4 {[%clk 0:02:21]} 12. Nxb5 {[%clk 0:02:57]}  Qc8 {[%clk 0:02:20]} 13. Qa4 {[%clk 0:02:51]}  e6 {[%clk 0:01:57]} 14. Qxc4 {[%clk 0:02:27]}  Qxc4 {[%clk 0:01:56]} 15. Bxc4 {[%clk 0:02:27]}  Bxf3 {[%clk 0:01:55]} 16. gxf3 {[%clk 0:02:28]}  Ne5 {[%clk 0:01:52]} 17. Be2 {[%clk 0:02:28]}  d5 {[%clk 0:01:51]} 18. d4 {[%clk 0:02:29]}  Nc6 {[%clk 0:01:40]} 19. Bf4 {[%clk 0:02:27]}  Kd7 {[%clk 0:01:39]} 20. Ra1 {[%clk 0:02:26]}  Nh5 {[%clk 0:01:29]} 21. Bg3 {[%clk 0:02:12]}  Be7 {[%clk 0:01:25]} 22. Na7 {[%clk 0:02:06]}  Nxg3 {[%clk 0:01:02]} 23. hxg3 {[%clk 0:02:07]}  Nxa7 {[%clk 0:00:58]} 24. Rxa7+ {[%clk 0:02:08]}  Kd6 {[%clk 0:00:58]} 25. Bb5 {[%clk 0:02:08]}  Rd8 {[%clk 0:00:57]} 26. f4 {[%clk 0:02:09]}  h6 {[%clk 0:00:55]} 27. Kg2 {[%clk 0:02:07]}  g5 {[%clk 0:00:54]} 28. Kf3 {[%clk 0:01:51]}  f5 {[%clk 0:00:51]} 29. b3 {[%clk 0:01:42]}  gxf4 {[%clk 0:00:47]} 30. gxf4 {[%clk 0:01:43]}  Bf6 {[%clk 0:00:33]} 31. Ke3 {[%clk 0:01:42]}  h5 {[%clk 0:00:23]} 32. Rf7 {[%clk 0:01:20]}  Be7 {[%clk 0:00:22]} 33. c4 {[%clk 0:01:19]}  dxc4 {[%clk 0:00:14]} 34. bxc4 {[%clk 0:01:20]}  Rb8 {[%clk 0:00:11]} 35. Kd3 {[%clk 0:01:12]}  Rb7 {[%clk 0:00:03]} 36. c5+ {[%clk 0:01:10]} 1-0

[Event "November 21 Late 2023"]
[Site "https://www.chess.com"]
[Date "2023.11.21"]
[Round "1"]
[White "YouShallNotPass001"]
[Black "Raja Rithvik R"]
[Result "0-1"]
[Board "44"]
[TimeControl "180+1"]
[BlackFideId "35007394"]
[WhiteElo "2443"]
[BlackElo "2395"]
[BlackTeam "IND"]
[WhiteClock "0:00:13"]
[BlackClock "0:01:00"]

1. Nf3 {[%clk 0:03:00]}  d5 {[%clk 0:02:59]} 2. e3 {[%clk 0:03:01]}  Nf6 {[%clk 0:03:00]} 3. Be2 {[%clk 0:03:02]}  e6 {[%clk 0:03:00]} 4. O-O {[%clk 0:03:03]}  b6 {[%clk 0:02:59]} 5. d4 {[%clk 0:03:03]}  Bb7 {[%clk 0:03:00]} 6. c4 {[%clk 0:03:04]}  Nbd7 {[%clk 0:03:00]} 7. Nc3 {[%clk 0:03:05]}  a6 {[%clk 0:03:00]} 8. a3 {[%clk 0:03:03]}  Bd6 {[%clk 0:02:58]} 9. b4 {[%clk 0:03:03]}  dxc4 {[%clk 0:02:53]} 10. Bxc4 {[%clk 0:03:01]}  O-O {[%clk 0:02:53]} 11. Qe2 {[%clk 0:03:00]}  Qe7 {[%clk 0:02:52]} 12. e4 {[%clk 0:02:53]}  e5 {[%clk 0:02:51]} 13. dxe5 {[%clk 0:02:47]}  Nxe5 {[%clk 0:02:52]} 14. Nxe5 {[%clk 0:02:45]}  Qxe5 {[%clk 0:02:49]} 15. f4 {[%clk 0:02:42]}  Qd4+ {[%clk 0:02:34]} 16. Be3 {[%clk 0:02:11]}  Qxc3 {[%clk 0:02:34]} 17. Rfc1 {[%clk 0:02:10]}  Qxa1 {[%clk 0:02:34]} 18. Rxa1 {[%clk 0:02:10]}  Nxe4 {[%clk 0:02:34]} 19. Rf1 {[%clk 0:01:32]}  a5 {[%clk 0:02:30]} 20. Bd4 {[%clk 0:01:27]}  Kh8 {[%clk 0:02:18]} 21. Qg4 {[%clk 0:01:12]}  f6 {[%clk 0:02:18]} 22. Rf3 {[%clk 0:00:59]}  axb4 {[%clk 0:02:06]} 23. Rh3 {[%clk 0:00:58]}  h6 {[%clk 0:01:48]} 24. Bd3 {[%clk 0:00:43]}  Bc8 {[%clk 0:01:40]} 25. f5 {[%clk 0:00:38]}  Ng5 {[%clk 0:01:37]} 26. Rxh6+ {[%clk 0:00:32]}  gxh6 {[%clk 0:01:36]} 27. Qh5 {[%clk 0:00:33]}  Rxa3 {[%clk 0:01:19]} 28. Qg6 {[%clk 0:00:24]}  Nh7 {[%clk 0:01:16]} 29. Bc4 {[%clk 0:00:20]}  Bc5 {[%clk 0:01:07]} 30. Bxc5 {[%clk 0:00:16]}  bxc5 {[%clk 0:01:08]} 31. Qxh6 {[%clk 0:00:16]}  b3 {[%clk 0:01:03]} 32. Bxb3 {[%clk 0:00:14]}  Rxb3 {[%clk 0:01:04]} 33. h4 {[%clk 0:00:14]}  Rg8 {[%clk 0:01:00]} 34. Kh2 {[%clk 0:00:14]}  Rb2 {[%clk 0:01:00]} 35. Qf4 {[%clk 0:00:13]}  Rbxg2+ {[%clk 0:01:00]} 0-1